bitfinex/quotes_BTCUSD_20250607
["timestamp","ask_amount","ask_price","bid_price","bid_amount"]
[1749288868607,1.3453836,105020.0,105010.0,0.40816512]
[1749288868931,1.33869101,105020.0,105010.0,0.40816512]
[1749288869140,1.33869178,105020.0,105010.0,0.40816512]
[1749288869343,1.34538466,105020.0,105010.0,0.40816512]
[1749288869547,1.32084409,105020.0,105010.0,0.40816512]
[1749288869750,1.32753697,105020.0,105010.0,0.40816512]
[1749288869951,1.34539074,105020.0,105010.0,0.40816512]
[1749288870765,1.3386962,105020.0,105010.0,0.40816512]
[1749288871003,1.34539074,105020.0,105010.0,0.40816512]
[1749288871208,1.32753863,105020.0,105010.0,0.40816512]
[1749288871425,1.32084409,105020.0,105010.0,0.40816512]
[1749288871628,1.3386962,105020.0,105010.0,0.40816512]
[1749288871830,1.34539103,105020.0,105010.0,0.40816512]
[1749288872412,1.34539181,105020.0,105010.0,0.40816512]
[1749288872617,1.32084409,105020.0,105010.0,0.40816512]
[1749288872868,1.34539181,105020.0,105010.0,0.40816512]
[1749288873060,1.34539623,105020.0,105010.0,0.40816512]
[1749288874345,1.33870903,105020.0,105010.0,0.40816512]
[1749288874552,1.32754344,105020.0,105010.0,0.40816512]
[1749288874785,1.34540838,105020.0,105010.0,0.40816512]
[1749288874995,1.32754344,105020.0,105010.0,0.40816512]
[1749288875196,1.33870903,105020.0,105010.0,0.40816512]
[1749288875414,1.34540838,105020.0,105010.0,0.40816512]
[1749288875619,1.33870903,105020.0,105010.0,0.40816512]
[1749288876438,1.32084409,105020.0,105010.0,0.40816512]
[1749288876850,1.32754331,105020.0,105010.0,0.40816512]
[1749288877003,1.34540792,105020.0,105010.0,0.40816512]
[1749288877204,1.32084409,105020.0,105010.0,0.40816512]
[1749288877414,1.3387087,105020.0,105010.0,0.40816512]
[1749288877633,1.32084409,105020.0,105010.0,0.40816512]
[1749288877835,1.3387087,105020.0,105010.0,0.40816512]
[1749288878573,1.34540792,105020.0,105010.0,0.40816512]
[1749288878756,1.32084409,105020.0,105010.0,0.40816512]
[1749288878943,1.34540793,105020.0,105010.0,0.40816512]
[1749288879137,1.32084409,105020.0,105010.0,0.40816512]
[1749288879326,1.34541299,105020.0,105010.0,0.40816512]
[1749288879749,1.33871238,105020.0,105010.0,0.40816512]
[1749288879954,1.3275447,105020.0,105010.0,0.40816512]
[1749288880620,1.34541299,105020.0,105010.0,0.40816512]
[1749288881390,1.33871238,105020.0,105010.0,0.40816512]
[1749288881837,1.3275447,105020.0,105010.0,0.40816512]
[1749288881995,1.34541299,105020.0,105010.0,0.40816512]
[1749288882195,1.32084409,105020.0,105010.0,0.40816512]
[1749288882421,1.34541299,105020.0,105010.0,0.40816512]
[1749288882647,1.34541296,105020.0,105010.0,0.40816512]
[1749288883043,1.33871232,105020.0,105010.0,0.40816512]
[1749288883320,1.32084409,105020.0,105010.0,0.40816512]
[1749288883632,1.33871232,105020.0,105010.0,0.40816512]
[1749288883862,1.32084409,105020.0,105010.0,0.40816512]
[1749288884069,1.3454129,105020.0,105010.0,0.40816512]
[1749288884546,1.34541321,105020.0,105010.0,0.40816512]
[1749288884764,1.34541402,105020.0,105010.0,0.40816512]
[1749288884982,1.33871311,105020.0,105010.0,0.40816512]
[1749288885389,1.32754498,105020.0,105010.0,0.40795204]
[1749288885597,1.34541402,105020.0,105010.0,0.40795204]
[1749288886495,1.33871313,105020.0,105010.0,0.40795204]
[1749288886727,1.32754492,105020.0,105010.0,0.40795204]
[1749288886946,1.34541382,105020.0,105010.0,0.40795204]
[1749288887164,1.32084409,105020.0,105010.0,0.40795204]
[1749288887381,1.34541382,105020.0,105010.0,0.40795204]
[1749288887604,1.32084409,105020.0,105010.0,0.40795204]
[1749288887815,1.34541382,105020.0,105010.0,0.40795204]
[1749288888127,1.32754498,105020.0,105010.0,0.40795204]
[1749288888371,1.34541403,105020.0,105010.0,0.40795204]
[1749288888617,1.33871314,105020.0,105010.0,0.40795204]
[1749288888859,1.34541403,105020.0,105010.0,0.40795204]
[1749288889102,1.33871314,105020.0,105010.0,0.40795204]
[1749288889601,1.34541403,105020.0,105010.0,0.40795204]
[1749288890071,1.33871314,105020.0,105010.0,0.40795204]
[1749288890291,1.34541403,105020.0,105010.0,0.40795204]
[1749288890843,1.33871325,105020.0,105010.0,0.40795204]
[1749288891077,1.32084409,105020.0,105010.0,0.40795204]
[1749288891318,1.34541661,105020.0,105010.0,0.40795204]
[1749288892095,1.32754568,105020.0,105010.0,0.40795204]
[1749288892487,1.33871502,105020.0,105010.0,0.40795204]
[1749288892713,1.32755359,105020.0,105010.0,0.40795204]
[1749288892924,1.34542452,105020.0,105010.0,0.40795204]
[1749288893166,1.32755359,105020.0,105010.0,0.40795204]
[1749288893358,1.34542452,105020.0,105010.0,0.40795204]
[1749288894056,1.33872293,105020.0,105010.0,0.40795204]
[1749288894266,1.34542452,105020.0,105010.0,0.40795204]
[1749288894777,1.33872292,105020.0,105010.0,0.40795204]
[1749288894987,1.34542451,105020.0,105010.0,0.40795204]
[1749288895577,1.34542451,105020.0,105010.0,0.03339204]
[1749288895818,1.34542451,105020.0,105010.0,0.40795204]
[1749288896026,1.34542453,105020.0,105010.0,0.40795204]
[1749288896230,1.320852,105020.0,105010.0,0.40795204]
[1749288896664,1.34542453,105020.0,105010.0,0.40795204]
[1749288897705,1.3275536,105020.0,105010.0,0.40795204]
[1749288897926,1.34542453,105020.0,105010.0,0.40795204]
[1749288898132,1.33872294,105020.0,105010.0,0.40795204]
[1749288898345,1.33872293,105020.0,105010.0,0.40795204]
[1749288898765,1.34542453,105020.0,105010.0,0.40795204]
[1749288899470,1.33872293,105020.0,105010.0,0.40795204]
[1749288899683,1.34542453,105020.0,105010.0,0.40795204]
[1749288900095,1.33872293,105020.0,105010.0,0.40795204]
[1749288900462,1.34542453,105020.0,105010.0,0.40795204]
[1749288901067,1.320852,105020.0,105010.0,0.40795204]
[1749288901305,1.320852,105020.0,105010.0,0.00209204]
[1749288901306,2.36670165,105020.0,105010.0,0.00209204]
[1749288901526,3.77069745,105020.0,105010.0,0.00209204]
[1749288901740,3.80981333,105020.0,105010.0,0.00209204]
[1749288901950,3.7812199,105020.0,105010.0,0.00209204]
[1749288902207,3.7812199,105020.0,105010.0,0.00109204]
[1749288902415,3.78122016,105020.0,105010.0,0.00109204]
[1749288902627,3.83933673,105020.0,105010.0,9.204e-05]
[1749288902848,3.8393368,105020.0,105010.0,9.204e-05]
[1749288903078,3.80774837,105020.0,105010.0,9.204e-05]
[1749288903560,3.7506318,105020.0,105010.0,9.204e-05]
[1749288903797,3.75063183,105020.0,105010.0,9.204e-05]
[1749288904419,3.77919165,105020.0,105010.0,9.204e-05]
[1749288904633,3.75461539,105020.0,105010.0,9.204e-05]
[1749288904852,3.77919165,105020.0,105010.0,9.204e-05]
[1749288905062,3.75461539,105020.0,105010.0,9.204e-05]
[1749288905267,2.10759208,105020.0,105010.0,9.204e-05]
[1749288905452,3.77919166,105020.0,105010.0,9.204e-05]
[1749288905956,3.75461539,105020.0,105010.0,9.204e-05]
[1749288906155,3.77919166,105020.0,105010.0,9.204e-05]
[1749288906363,3.75461539,105020.0,105010.0,9.204e-05]
[1749288906569,3.77919166,105020.0,105010.0,9.204e-05]
[1749288906780,3.76131801,105020.0,105010.0,9.204e-05]
[1749288906987,3.75461539,105020.0,105010.0,9.204e-05]
[1749288907193,3.76131801,105020.0,105010.0,9.204e-05]
[1749288907619,3.77919166,105020.0,105010.0,9.204e-05]
[1749288908449,3.77248904,105020.0,105010.0,9.204e-05]
[1749288908853,3.77919166,105020.0,105010.0,9.204e-05]
[1749288908986,3.75461539,105020.0,105010.0,9.204e-05]
[1749288909193,3.77919168,105020.0,105010.0,9.204e-05]
[1749288909398,3.75461539,105020.0,105010.0,9.204e-05]
[1749288909952,2.12546575,105020.0,105010.0,9.204e-05]
[1749288910151,3.75461539,105020.0,105010.0,9.204e-05]
[1749288910509,3.77248906,105020.0,105010.0,9.204e-05]
[1749288910714,3.75461539,105020.0,105010.0,9.204e-05]
[1749288910959,3.82248906,105020.0,105010.0,9.204e-05]
[1749288911379,3.83995002,105020.0,105010.0,9.204e-05]
[1749288911578,3.85782371,105020.0,105010.0,9.204e-05]
[1749288911783,3.83995002,105020.0,105010.0,9.204e-05]
[1749288911989,3.83324739,105020.0,105010.0,9.204e-05]
[1749288912347,3.83995002,105020.0,105010.0,9.204e-05]
[1749288912762,3.85112115,105020.0,105010.0,9.204e-05]
[1749288912976,3.83995005,105020.0,105010.0,9.204e-05]
[1749288913397,3.85782382,105020.0,105010.0,9.204e-05]
[1749288913601,3.85782381,105020.0,105010.0,9.204e-05]
[1749288913801,3.79517891,105020.0,105010.0,9.204e-05]
[1749288914010,3.81975533,105020.0,105010.0,9.204e-05]
[1749288914419,3.79517891,105020.0,105010.0,9.204e-05]
[1749288914620,3.81975533,105020.0,105010.0,9.204e-05]
[1749288915240,3.79517891,105020.0,105010.0,9.204e-05]
[1749288915463,3.80188157,105020.0,105010.0,9.204e-05]
[1749288915637,3.81305267,105020.0,105010.0,9.204e-05]
[1749288915839,3.80188157,105020.0,105010.0,9.204e-05]
[1749288916506,3.81975533,105020.0,105010.0,9.204e-05]
[1749288916940,3.81305267,105020.0,105010.0,9.204e-05]
[1749288917059,3.80188157,105020.0,105010.0,9.204e-05]
[1749288917297,3.81975533,105020.0,105010.0,9.204e-05]
[1749288917500,3.81305267,105020.0,105010.0,9.204e-05]
[1749288917695,3.80188157,105020.0,105010.0,9.204e-05]
[1749288917896,3.81970812,105020.0,105010.0,9.204e-05]
[1749288918191,3.8196321,105020.0,105010.0,9.204e-05]
[1749288918398,3.85770058,105020.0,105010.0,9.204e-05]
[1749288918616,3.94016028,105020.0,105010.0,9.204e-05]
[1749288918820,3.95799741,105020.0,105010.0,9.204e-05]
[1749288918974,3.93347137,105020.0,105010.0,9.204e-05]
[1749288919185,3.94016029,105020.0,105010.0,9.204e-05]
[1749288919554,3.95130851,105020.0,105010.0,9.204e-05]
[1749288919744,3.95799743,105020.0,105010.0,9.204e-05]
[1749288920863,3.9579856,105020.0,105010.0,9.204e-05]
[1749288921079,3.93347137,105020.0,105010.0,9.204e-05]
[1749288921490,3.9579856,105020.0,105010.0,9.204e-05]
[1749288922545,3.93347137,105020.0,105010.0,9.204e-05]
[1749288923176,3.85099978,105020.0,105010.0,9.204e-05]
[1749288923385,3.83985702,105020.0,105010.0,9.204e-05]
[1749288923586,3.85768543,105020.0,105010.0,9.204e-05]
[1749288924449,3.83985702,105020.0,105010.0,9.204e-05]
[1749288924659,3.85768543,105020.0,105010.0,9.204e-05]
[1749288925120,3.85099978,105020.0,105010.0,9.204e-05]
[1749288925329,3.85768543,105020.0,105010.0,9.204e-05]
[1749288926420,3.85099978,105020.0,105010.0,9.204e-05]
[1749288926626,3.85768543,105020.0,105010.0,9.204e-05]
[1749288927253,3.85768892,105020.0,105010.0,9.204e-05]
[1749288928135,3.8576968,105020.0,105010.0,9.204e-05]
[1749288928748,3.82247552,105020.0,105010.0,9.204e-05]
[1749288929017,3.82916427,105020.0,105010.0,9.204e-05]
[1749288929871,3.88628084,105020.0,105010.0,9.204e-05]
[1749288930521,3.86844416,105020.0,105010.0,9.204e-05]
[1749288930723,3.88628084,105020.0,105010.0,9.204e-05]
[1749288931358,3.85588084,105020.0,105010.0,9.204e-05]
[1749288931581,3.84922864,105020.0,105010.0,9.204e-05]
[1749288931789,3.8559311,105020.0,105010.0,9.204e-05]
[1749288933160,3.85593112,105020.0,105010.0,9.204e-05]
[1749288933357,3.84922864,105020.0,105010.0,9.204e-05]
[1749288933590,3.8492287,105020.0,105010.0,9.204e-05]
[1749288933798,3.83135541,105020.0,105010.0,9.204e-05]
[1749288934018,3.85593118,105020.0,105010.0,9.204e-05]
[1749288934240,3.83805789,105020.0,105010.0,9.204e-05]
[1749288934445,3.85593118,105020.0,105010.0,9.204e-05]
[1749288935164,3.8492287,105020.0,105010.0,9.204e-05]
[1749288935370,3.85593118,105020.0,105010.0,9.204e-05]
[1749288935574,3.8492287,105020.0,105010.0,9.204e-05]
[1749288935988,3.85593118,105020.0,105010.0,9.204e-05]
[1749288936852,3.8492287,105020.0,105010.0,9.204e-05]
[1749288937064,3.83135541,105020.0,105010.0,9.204e-05]
[1749288937280,3.83805789,105020.0,105010.0,9.204e-05]
[1749288937710,3.85593118,105020.0,105010.0,9.204e-05]
[1749288938357,3.83135541,105020.0,105010.0,9.204e-05]
[1749288938561,3.85593119,105020.0,105010.0,9.204e-05]
[1749288938769,3.84922871,105020.0,105010.0,9.204e-05]
[1749288938974,3.83805789,105020.0,105010.0,9.204e-05]
[1749288939180,3.85593119,105020.0,105010.0,9.204e-05]
[1749288939829,3.85593121,105020.0,105010.0,9.204e-05]
[1749288940029,3.85593125,105020.0,105010.0,9.204e-05]
[1749288940269,3.83805791,105020.0,105010.0,9.204e-05]
[1749288940719,3.84922875,105020.0,105010.0,9.204e-05]
[1749288940923,3.83805791,105020.0,105010.0,9.204e-05]
[1749288941128,3.85593125,105020.0,105010.0,9.204e-05]
[1749288941669,3.83805791,105020.0,105010.0,9.204e-05]
[1749288941875,3.85593125,105020.0,105010.0,9.204e-05]
[1749288942080,3.84922875,105020.0,105010.0,9.204e-05]
[1749288942285,3.85593125,105020.0,105010.0,9.204e-05]
[1749288942509,3.83805791,105020.0,105010.0,9.204e-05]
[1749288942714,3.85593125,105020.0,105010.0,9.204e-05]
[1749288944182,3.83805791,105020.0,105010.0,9.204e-05]
[1749288944393,3.85593125,105020.0,105010.0,9.204e-05]
[1749288944601,3.84922875,105020.0,105010.0,9.204e-05]
[1749288944810,3.85593125,105020.0,105010.0,9.204e-05]
[1749288945222,3.83805791,105020.0,105010.0,9.204e-05]
[1749288945431,3.85593125,105020.0,105010.0,0.01649204]
[1749288945813,3.84922875,105020.0,105010.0,0.01649204]
[1749288946038,3.83135541,105020.0,105010.0,0.01649204]
[1749288946254,3.85593125,105020.0,105010.0,0.01649204]
[1749288947066,3.83135541,105020.0,105010.0,0.01649204]
[1749288947421,3.84922875,105020.0,105010.0,0.01649204]
[1749288947867,3.85593131,105020.0,105010.0,0.01649204]
[1749288948298,3.85593148,105020.0,105010.0,0.01649204]
[1749288948509,3.85593147,105020.0,105010.0,0.01649204]
[1749288948694,3.83805796,105020.0,105010.0,0.01649204]
[1749288948899,3.83135541,105020.0,105010.0,0.01649204]
[1749288949659,3.85593142,105020.0,105010.0,0.01649204]
[1749288950287,3.85593144,105020.0,105010.0,0.03299204]
[1749288950721,3.85593145,105020.0,105010.0,0.03299204]
[1749288950912,3.85593146,105020.0,105010.0,0.03299204]
[1749288951106,3.83135541,105020.0,105010.0,0.03299204]
[1749288951360,3.85593146,105020.0,105010.0,0.03299204]
[1749288951800,3.85593125,105020.0,105010.0,0.03299204]
[1749288952209,3.85593125,105020.0,105010.0,0.01649204]
[1749288952411,3.85593121,105020.0,105010.0,0.01649204]
[1749288952618,3.83135541,105020.0,105010.0,0.01649204]
[1749288952840,3.83310519,105020.0,105010.0,0.01649204]
[1749288953041,3.8492807,105020.0,105010.0,0.01649204]
[1749288953245,3.85598319,105020.0,105010.0,0.01649204]
[1749288953875,3.8492807,105020.0,105010.0,0.01649204]
[1749288954083,3.85598316,105020.0,105010.0,0.01649204]
[1749288954305,3.85598309,105020.0,105010.0,0.01649204]
[1749288954522,3.83810985,105020.0,105010.0,0.01649204]
[1749288954941,3.85598309,105020.0,105010.0,0.01649204]
[1749288956057,3.83140739,105020.0,105010.0,0.01649204]
[1749288956295,3.83810985,105020.0,105010.0,0.01649204]
[1749288956542,3.84928063,105020.0,105010.0,0.03229204]
[1749288956747,3.85598309,105020.0,105010.0,0.03229204]
[1749288957424,3.85598306,105020.0,105010.0,0.03229204]
[1749288957791,3.83810982,105020.0,105010.0,0.03229204]
[1749288958007,3.83140739,105020.0,105010.0,0.03229204]
[1749288958217,3.83810982,105020.0,105010.0,0.03229204]
[1749288958397,3.84928056,105020.0,105010.0,0.03229204]
[1749288958622,3.85598299,105020.0,105010.0,0.03229204]
[1749288959216,3.83810982,105020.0,105010.0,0.03229204]
[1749288959619,3.83140739,105020.0,105010.0,0.03229204]
[1749288959823,3.85598298,105020.0,105010.0,0.03229204]
[1749288960414,2.5054683,105020.0,105010.0,0.03229204]
[1749288960609,2.5054683,105020.0,105010.0,0.01649204]
[1749288960814,2.50546822,105020.0,105010.0,0.01649204]
[1749288961210,2.5054682,105020.0,105010.0,0.01649204]
[1749288961528,2.48089271,105020.0,105010.0,9.204e-05]
[1749288961744,2.49876607,105020.0,105010.0,9.204e-05]
[1749288961944,2.50546858,105020.0,105010.0,9.204e-05]
[1749288962356,2.50546734,105020.0,105010.0,9.204e-05]
[1749288962771,2.48759398,105020.0,105010.0,9.204e-05]
[1749288963044,3.7144435,105020.0,105010.0,9.204e-05]
[1749288963242,3.73231337,105020.0,105010.0,0.01589204]
[1749288963416,3.7211447,105020.0,105010.0,0.01589204]
[1749288963861,3.73901457,105020.0,105010.0,0.01589204]
[1749288964064,3.73901457,105020.0,105010.0,9.204e-05]
[1749288964702,3.73231231,105020.0,105010.0,9.204e-05]
[1749288964906,3.7144435,105020.0,105010.0,9.204e-05]
[1749288965106,2.25154493,105010.0,105000.0,0.0318]
[1749288965311,2.5489807,105010.0,105000.0,0.03228061]
[1749288965513,1.97540144,105010.0,105000.0,0.03228061]
[1749288965712,2.01488188,105010.0,105000.0,0.03228061]
[1749288965917,2.00818052,105010.0,105000.0,0.03228061]
[1749288966121,2.01488192,105010.0,105000.0,0.03228061]
[1749288966324,3.86518471,105010.0,105000.0,0.03228061]
[1749288966518,3.827077,105010.0,105000.0,0.03228061]
[1749288967149,3.80250462,105010.0,105000.0,0.03228061]
[1749288967357,3.827077,105010.0,105000.0,0.03228061]
[1749288967802,3.82706036,105010.0,105000.0,0.03228061]
[1749288968205,3.82705412,105010.0,105000.0,0.03228061]
[1749288968430,3.27804637,105010.0,105000.0,0.03228061]
[1749288968552,3.29157945,105010.0,105000.0,0.03228061]
[1749288968767,3.29827477,105010.0,105000.0,0.03228061]
[1749288968968,3.31612897,105010.0,105000.0,0.03228061]
[1749288969170,3.29157945,105010.0,105000.0,0.03228061]
[1749288969382,3.31612768,105010.0,105000.0,0.03228061]
[1749288970003,3.29827442,105010.0,105000.0,0.03228061]
[1749288970264,3.29157945,105010.0,105000.0,0.03228061]
[1749288970713,3.31612768,105010.0,105000.0,0.03228061]
[1749288970885,2.21422584,105010.0,105000.0,0.03228061]
[1749288971815,2.1963701,105010.0,105000.0,0.03228061]
[1749288972032,2.20752427,105010.0,105000.0,0.03228061]
[1749288972204,2.2075243,105010.0,105000.0,0.03228061]
[1749288972589,2.21421681,105010.0,105000.0,0.03228061]
[1749288972915,2.21421552,105010.0,105000.0,0.03228061]
[1749288973130,2.19636883,105010.0,105000.0,0.03228061]
[1749288973323,2.2142121,105010.0,105000.0,0.03228061]
[1749288973741,2.20752088,105010.0,105000.0,0.03228061]
[1749288973943,2.2142121,105010.0,105000.0,0.03228061]
[1749288975664,2.19636883,105010.0,105000.0,0.03228061]
[1749288975877,2.2142121,105010.0,105000.0,0.03228061]
[1749288976274,2.76321873,105010.0,105000.0,0.03228061]
[1749288976475,2.21421096,105010.0,105000.0,0.03228061]
[1749288976903,2.20752005,105010.0,105000.0,0.03228061]
[1749288977073,2.21421032,105010.0,105000.0,0.03228061]
[1749288977486,2.2142086,105010.0,105000.0,0.03228061]
[1749288977675,2.20751833,105010.0,105000.0,0.03228061]
[1749288977876,2.74537565,105010.0,105000.0,0.03228061]
[1749288978109,3.75492803,105010.0,105000.0,0.03228061]
[1749288978527,3.75492751,105010.0,105000.0,0.03228061]
[1749288978719,3.75492731,105010.0,105000.0,0.03228061]
[1749288979110,0.19049204,105000.0,104990.0,0.0164]
[1749288979341,1.53438112,105000.0,104990.0,0.0164]
[1749288979552,1.55725932,105000.0,104990.0,0.0164]
[1749288979755,2.17298253,105000.0,104990.0,0.0164]
[1749288980178,2.14845414,105000.0,104990.0,0.0164]
[1749288980537,2.17298284,105000.0,104990.0,0.0164]
[1749288980699,2.15514378,105000.0,104990.0,0.0164]
[1749288980879,2.17298284,105000.0,104990.0,0.0164]
[1749288981057,2.15514378,105000.0,104990.0,0.0164]
[1749288981253,2.17298284,105000.0,104990.0,0.0164]
[1749288981628,2.18443843,105000.0,104990.0,0.0164]
[1749288982236,2.19558772,105000.0,104990.0,0.0321]
[1749288982441,2.20127728,105000.0,104990.0,0.0321]
[1749288982642,2.19458772,105000.0,104990.0,0.0321]
[1749288982864,2.17774887,105000.0,104990.0,0.0321]
[1749288983092,2.20227728,105000.0,104990.0,0.0321]
[1749288983402,2.18443843,105000.0,104990.0,0.0321]
[1749288983618,2.19558772,105000.0,104990.0,0.0321]
[1749288983789,2.20227739,105000.0,104990.0,0.0321]
[1749288983967,2.17774887,105000.0,104990.0,0.0321]
[1749288984173,2.20227744,105000.0,104990.0,0.0321]
[1749288984555,2.19558783,105000.0,104990.0,0.0321]
[1749288984971,2.20227744,105000.0,104990.0,0.0321]
[1749288986456,2.19558783,105000.0,104990.0,0.0321]
[1749288986812,2.17774887,105000.0,104990.0,0.0321]
[1749288987031,2.19558855,105000.0,104990.0,0.0321]
[1749288987281,2.17774887,105000.0,104990.0,0.0321]
[1749288987422,2.20227843,105000.0,104990.0,0.0321]
[1749288988416,2.17774887,105000.0,104990.0,0.0321]
[1749288988625,2.20227843,105000.0,104990.0,0.0321]
[1749288989034,2.20227874,105000.0,104990.0,0.0321]
[1749288989440,2.20227958,105000.0,104990.0,0.0321]
[1749288989939,2.19558939,105000.0,104990.0,0.0321]
[1749288990055,2.18443906,105000.0,104990.0,0.0321]
[1749288990264,2.20227958,105000.0,104990.0,0.0321]
[1749288990473,1.65327181,105000.0,104990.0,0.0321]
[1749288991269,1.6532761,105000.0,104990.0,0.0321]
[1749288991472,1.6287411,105000.0,104990.0,0.0321]
[1749288991838,1.65327771,105000.0,104990.0,0.0321]
[1749288992036,1.64658591,105000.0,104990.0,0.0321]
[1749288992247,1.65327771,105000.0,104990.0,0.0321]
[1749288992464,1.65328331,105000.0,104990.0,0.0321]
[1749288992817,1.60688867,105000.0,104990.0,0.0321]
[1749288992976,1.60019687,105000.0,104990.0,0.0321]
[1749288993185,1.61804728,105000.0,104990.0,0.0321]
[1749288993420,1.35972463,105000.0,104990.0,0.0321]
[1749288993621,1.53236626,105000.0,104990.0,0.0321]
[1749288993818,1.55021667,105000.0,104990.0,0.0321]
[1749288994002,2.10591834,105000.0,104990.0,0.0321]
[1749288994208,2.1059244,105000.0,104990.0,0.0321]
[1749288994626,2.07737169,105000.0,104990.0,0.0321]
[1749288994787,2.05280516,105000.0,104990.0,0.0321]
[1749288994998,2.07737169,105000.0,104990.0,0.0321]
[1749288995387,2.05280516,105000.0,104990.0,0.0321]
[1749288995590,2.12607005,105000.0,104990.0,0.0321]
[1749288996029,2.14393662,105000.0,104990.0,0.0321]
[1749288996272,2.12607005,105000.0,104990.0,0.0164]
[1749288996407,2.04873614,105000.0,104990.0,0.0164]
[1749288996602,2.04873613,105000.0,104990.0,0.0164]
[1749288996838,2.04873614,105000.0,104990.0,0.0164]
[1749288997327,2.04873613,105000.0,104990.0,0.0164]
[1749288997676,2.04873622,105000.0,104990.0,0.0164]
[1749288997909,2.15967655,105000.0,104990.0,0.0164]
[1749288998327,2.15967658,105000.0,104990.0,0.0164]
[1749288998767,2.14181033,105000.0,104990.0,0.0164]
[1749288998964,2.15967658,105000.0,104990.0,0.0164]
[1749288999118,2.13511049,105000.0,104990.0,0.0164]
[1749288999284,2.15967658,105000.0,104990.0,0.0164]
[1749288999887,2.1596767,105000.0,104990.0,0.0164]
[1749289000102,2.13511049,105000.0,104990.0,0.0164]
[1749289000559,2.15967674,105000.0,104990.0,0.0164]
[1749289000798,2.14181038,105000.0,104990.0,0.0164]
[1749289000991,2.15967675,105000.0,104990.0,0.0164]
[1749289001399,2.15967702,105000.0,104990.0,0.0164]
[1749289002003,0.50595382,105000.0,104990.0,0.0164]
[1749289002222,2.13511049,105000.0,104990.0,0.0327]
[1749289002427,2.15967712,105000.0,104990.0,0.0327]
[1749289002623,2.15297713,105000.0,104990.0,0.0327]
[1749289002832,2.15967712,105000.0,104990.0,0.0327]
[1749289003361,2.21686614,105000.0,104990.0,0.0327]
[1749289003567,2.21016615,105000.0,104990.0,0.0327]
[1749289003852,2.21686677,105000.0,104990.0,0.0327]
[1749289004088,2.21016615,105000.0,104990.0,0.0327]
[1749289004264,2.19899843,105000.0,104990.0,0.0327]
[1749289004628,2.21686677,105000.0,104990.0,0.0327]
[1749289004792,2.12046729,105000.0,104990.0,0.0164]
[1749289005342,2.09589833,105000.0,104990.0,0.0164]
[1749289005746,2.10259895,105000.0,104990.0,0.0164]
[1749289005933,2.09589833,105000.0,104990.0,0.0164]
[1749289006142,2.11376667,105000.0,104990.0,0.0324]
[1749289006350,2.12046729,105000.0,104990.0,0.0324]
[1749289006550,2.12047135,105000.0,104990.0,0.0324]
[1749289006873,2.12047174,105000.0,104990.0,0.0324]
[1749289007440,2.09589833,105000.0,104990.0,0.0324]
[1749289007612,2.12047341,105000.0,104990.0,0.0324]
[1749289007809,2.09589833,105000.0,104990.0,0.0324]
[1749289008016,2.12047341,105000.0,104990.0,0.0324]
[1749289008678,2.12047371,105000.0,104990.0,0.0324]
[1749289008908,2.10260074,105000.0,104990.0,0.0324]
[1749289009061,2.09589833,105000.0,104990.0,0.0324]
[1749289009450,2.10260074,105000.0,104990.0,0.0324]
[1749289009859,2.12047755,105000.0,104990.0,0.0324]
[1749289010263,2.12047894,105000.0,104990.0,0.0324]
[1749289010665,2.12047895,105000.0,104990.0,0.0324]
[1749289011088,2.12047894,105000.0,104990.0,0.0324]
[1749289011552,2.11377515,105000.0,104990.0,0.0324]
[1749289011753,2.12047895,105000.0,104990.0,0.0324]
[1749289012362,2.12047897,105000.0,104990.0,0.0164]
[1749289012637,2.12047898,105000.0,104990.0,0.0164]
[1749289013019,2.11377517,105000.0,104990.0,0.0164]
[1749289013437,2.12047898,105000.0,104990.0,0.0164]
[1749289014687,2.10260214,105000.0,104990.0,0.0164]
[1749289014896,2.11377517,105000.0,104990.0,0.0164]
[1749289015102,2.09589833,105000.0,104990.0,0.0164]
[1749289015315,2.11377517,105000.0,104990.0,0.0164]
[1749289015519,2.10260214,105000.0,104990.0,0.0164]
[1749289015739,2.120479,105000.0,104990.0,0.0164]
[1749289015959,2.09589833,105000.0,104990.0,0.0164]
[1749289016115,2.12047901,105000.0,104990.0,0.0164]
[1749289016652,2.11377519,105000.0,104990.0,0.0164]
[1749289016845,2.12047901,105000.0,104990.0,0.0164]
[1749289017641,0.54954312,104990.0,104980.0,0.31928]
[1749289017841,1.82002003,104990.0,104980.0,0.31928]
[1749289018166,1.79543935,104990.0,104980.0,0.31928]
[1749289018452,1.80214317,104990.0,104980.0,0.31928]
[1749289018591,1.82002003,104990.0,104980.0,0.0318]
[1749289018797,1.84504678,104990.0,104980.0,0.0318]
[1749289018998,1.84504679,104990.0,104980.0,0.0318]
[1749289019220,1.84604679,104990.0,104980.0,0.0318]
[1749289019396,1.84604676,104990.0,104980.0,0.0318]
[1749289019756,1.8393429,104990.0,104980.0,0.0318]
[1749289020110,1.8281699,104990.0,104980.0,0.0318]
[1749289020281,1.8214661,104990.0,104980.0,0.0318]
[1749289020482,1.82101995,104990.0,104980.0,0.0318]
[1749289021818,1.79643935,104990.0,104980.0,0.0318]
[1749289022021,1.81431615,104990.0,104980.0,0.0318]
[1749289022216,1.82101995,104990.0,104980.0,0.0318]
[1749289023219,1.80314315,104990.0,104980.0,0.0318]
[1749289023484,1.91741905,104990.0,104980.0,0.0318]
[1749289023890,1.80314304,104990.0,104980.0,0.0318]
[1749289024093,1.82101957,104990.0,104980.0,0.0318]
[1749289024505,1.82101952,104990.0,104980.0,0.0318]
[1749289024724,1.82101951,104990.0,104980.0,0.0318]
[1749289025267,1.79643935,104990.0,104980.0,0.0318]
[1749289025563,1.80314303,104990.0,104980.0,0.0318]
[1749289025873,1.91741899,104990.0,104980.0,0.0318]
[1749289026499,1.91071531,104990.0,104980.0,0.0318]
[1749289026711,1.89954249,104990.0,104980.0,0.0318]
[1749289026924,1.80314301,104990.0,104980.0,0.0318]
[1749289027130,1.82101946,104990.0,104980.0,0.0318]
[1749289027338,1.80314304,104990.0,104980.0,0.0318]
[1749289027549,1.82101955,104990.0,104980.0,0.0318]
[1749289028299,1.80314266,104990.0,104980.0,0.0318]
[1749289028505,1.79643935,104990.0,104980.0,0.0318]
[1749289028714,1.82101817,104990.0,104980.0,0.0318]
[1749289028908,1.81431486,104990.0,104980.0,0.0318]
[1749289029113,1.82101817,104990.0,104980.0,0.0318]
[1749289029810,1.82101808,104990.0,104980.0,0.0318]
[1749289029938,1.82101805,104990.0,104980.0,0.0318]
[1749289030550,1.80314263,104990.0,104980.0,0.0318]
[1749289030753,1.81431477,104990.0,104980.0,0.0318]
[1749289030988,1.82101805,104990.0,104980.0,0.0318]
[1749289031240,1.82101806,104990.0,104980.0,0.0318]
[1749289031485,1.8210179,104990.0,104980.0,0.0318]
[1749289032105,1.80314247,104990.0,104980.0,0.0318]
[1749289032529,1.81431433,104990.0,104980.0,0.0318]
[1749289032687,1.82101744,104990.0,104980.0,0.0318]
[1749289033284,1.82101741,104990.0,104980.0,0.0318]
[1749289033516,1.82101732,104990.0,104980.0,0.0318]
[1749289033745,1.82101734,104990.0,104980.0,0.0318]
[1749289033949,1.80314243,104990.0,104980.0,0.0318]
[1749289034161,1.80314237,104990.0,104980.0,0.0318]
[1749289034307,1.8210171,104990.0,104980.0,0.0318]